[Event "33rd Cannes Open 2019"]
[Site "Cannes"]
[Date "2019.02.23"]
[Round "8.4"]
[White "Flear, Glenn C"]
[Black "Krzyzanowski, Marcin"]
[Result "0-1"]
[ECO "E92"]
[WhiteElo "2451"]
[BlackElo "2504"]
[Annotator "ChessBase"]
[PlyCount "72"]
[EventDate "2019.02.18"]
[EventType "swiss"]
[EventCountry "FRA"]
[SourceTitle "playchess.com"]
[Source "ChessBase"]
[SourceQuality "1"]
[TimeControl "40/5400+30:1800+30"]

1. d4 {[%emt 0:00:00]} Nf6 {[%emt 0:02:20]} 2. c4 {[%emt 0:00:00]} g6 {[%emt 0:00:05]} 3. Nc3 {[%emt 0:00:00]} Bg7 {[%emt 0:00:07]} 4. e4 {[%emt 0:00:12]} d6 {[%emt 0:00:04]} 5. Be2 {[%emt 0:00:53]} O-O {[%emt 0:00:24]} 6. Nf3 {[%emt 0:04:07]} e5 {[%emt 0:01:28]} 7. d5 {[%emt 0:01:20]} Na6 {[%emt 0:03:12]} 8. Bg5 {[%emt 0:03:26]} h6 {[%emt 0:04:54]} 9. Bh4 {[%emt 0:00:46]} Qe8 {[%emt 0:02:45]} 10. Nd2 {[%emt 0:02:31]} Nh7 {[%emt 0:03:11]} 11. O-O {[%emt 0:05:36]} h5 {[%emt 0:01:59]} 12. f3 {[%emt 0:01:09]} Bh6 {[%emt 0:01:12]} 13. Rb1 {[%emt 0:05:58]} Kh8 {[%emt 0:12:35]} 14. b4 {[%emt 0:01:19]} f5 {[%emt 0:02:03]} 15. Qc2 {[%emt 0:26:39]} g5 {[%emt 0:08:42]} 16. Bf2 {[%emt 0:00:28]} f4 {[%emt 0:00:03]} 17. c5 {[%emt 0:01:15]} g4 {[%emt 0:03:54]} 18. Kh1 {[%emt 0:04:21]} Rg8 {[%emt 0:12:06]} 19. Bxa6 {[%emt 0:16:53]} bxa6 {[%emt 0:01:15]} 20. Ne2 {[%emt 0:01:08]} Qe7 {[%emt 0:09:25]} 21. fxg4 {[%emt 0:05:06]} Bxg4 {[%emt 0:06:48]} 22. Nf3 {[%emt 0:01:05]} Rg7 {[%emt 0:00:49]} 23. Rg1 {[%emt 0:01:14]} Rag8 {[%emt 0:01:51]} 24. Qd3 {[%emt 0:02:28]} h4 {[%emt 0:04:33]} 25. Nxh4 {[%emt 0:03:40]} Nf6 {[%emt 0:01:15]} 26. cxd6 {[%emt 0:02:22]} cxd6 {[%emt 0:00:16]} 27. h3 {[%emt 0:00:41]} Bd7 {[%emt 0:03:50]} 28. Nc3 {[%emt 0:01:22]} Rh7 {[%emt 0:06:24]} 29. Rbf1 {[%emt 0:02:13]} Bg5 {[%emt 0:02:30]} 30. Nf5 {[%emt 0:01:00]} Qf8 {[%emt 0:00:01]} 31. Qxa6 {[%emt 0:01:22]} Nxe4 {[%emt 0:01:38]} 32. Nxe4 {[%emt 0:00:50]} Qxf5 {[%emt 0:01:14]} 33. Qd3 {[%emt 0:01:38]} Bb5 {[%emt 0:01:12]} 34. Qf3 {[%emt 0:01:53]} Be2 {[%emt 0:00:23]} 35. Nxg5 {[%emt 0:00:43]} Rxg5 {[%emt 0:01:16]} 36. Qb3 {[%emt 0:01:09]} f3 0-1

[Event "33rd Cannes Open 2019"]
[Site "Cannes"]
[Date "2019.02.23"]
[Round "8.5"]
[White "Apicella, Manuel"]
[Black "Barp, Alberto"]
[Result "1-0"]
[ECO "C72"]
[WhiteElo "2501"]
[BlackElo "2420"]
[Annotator "ChessBase"]
[PlyCount "59"]
[EventDate "2019.02.18"]
[EventType "swiss"]
[EventCountry "FRA"]
[SourceTitle "playchess.com"]
[Source "ChessBase"]
[SourceQuality "1"]
[TimeControl "40/5400+30:1800+30"]

1. e4 {[%emt 0:00:00]} e5 {[%emt 0:00:00]} 2. Nf3 {[%emt 0:00:00]} Nc6 {[%emt 0:00:00]} 3. Bb5 {[%emt 0:00:00]} a6 {[%emt 0:00:23]} 4. Ba4 {[%emt 0:00:01]} d6 {[%emt 0:00:54]} 5. O-O {[%emt 0:01:11]} Bd7 {[%emt 0:00:12]} 6. c3 {[%emt 0:03:42]} g6 {[%emt 0:01:12]} 7. d4 {[%emt 0:03:17]} Bg7 {[%emt 0:01:05]} 8. d5 {[%emt 0:06:06]} Nce7 {[%emt 0:00:08]} 9. Bxd7+ {[%emt 0:00:22]} Qxd7 {[%emt 0:00:06]} 10. c4 {[%emt 0:00:25]} h6 {[%emt 0:00:22]} 11. Nfd2 {[%emt 0:01:14]} f5 {[%emt 0:04:52]} 12. f3 {[%emt 0:07:08]} Nf6 {[%emt 0:00:51]} 13. Nc3 {[%emt 0:00:08]} O-O {[%emt 0:00:05]} 14. b4 {[%emt 0:01:02]} c6 {[%emt 0:03:48]} 15. Qb3 {[%emt 0:08:27]} cxd5 {[%emt 0:15:49]} 16. cxd5 {[%emt 0:05:30]} Rac8 {[%emt 0:04:05]} 17. Bb2 {[%emt 0:00:42]} h5 {[%emt 0:06:53]} 18. Nc4 {[%emt 0:02:50]} Qc7 {[%emt 0:17:49]} 19. Nxe5 {[%emt 0:13:00]} fxe4 {[%emt 0:01:58]} 20. Nxe4 {[%emt 0:02:49]} Nxe4 {[%emt 0:04:05]} 21. fxe4 {[%emt 0:00:46]} Rxf1+ {[%emt 0:03:59]} 22. Rxf1 {[%emt 0:00:57]} Qc2 {[%emt 0:01:24]} 23. Nc6 {[%emt 0:03:20]} Qxe4 {[%emt 0:06:25]} 24. Qf3 {[%emt 0:03:29]} Qxf3 {[%emt 0:02:22]} 25. Nxe7+ {[%emt 0:00:08]} Kh7 {[%emt 0:00:54]} 26. Rxf3 {[%emt 0:01:25]} Rc2 {[%emt 0:02:24]} 27. Bxg7 {[%emt 0:01:04]} Kxg7 {[%emt 0:00:04]} 28. Rg3 {[%emt 0:00:55]} h4 {[%emt 0:01:03]} 29. Rxg6+ {[%emt 0:03:07]} Kf7 {[%emt 0:00:15]} 30. Re6 {[%emt 0:00:04]} 1-0

[Event "33rd Cannes Open 2019"]
[Site "Cannes"]
[Date "2019.02.23"]
[Round "8.6"]
[White "Lodici, Lorenzo"]
[Black "Gilevych, Artem"]
[Result "0-1"]
[ECO "A17"]
[WhiteElo "2482"]
[BlackElo "2403"]
[Annotator "ChessBase"]
[PlyCount "58"]
[EventDate "2019.02.18"]
[EventType "swiss"]
[EventCountry "FRA"]
[SourceTitle "playchess.com"]
[Source "ChessBase"]
[SourceQuality "1"]
[TimeControl "40/5400+30:1800+30"]

1. Nf3 {[%emt 0:00:00]} e6 {[%emt 0:07:54]} 2. c4 {[%emt 0:00:49]} Nf6 {[%emt 0:00:05]} 3. Nc3 {[%emt 0:04:12]} Bb4 {[%emt 0:01:08]} 4. g3 {[%emt 0:02:49]} Nc6 {[%emt 0:01:06]} 5. Bg2 {[%emt 0:05:49]} O-O {[%emt 0:00:11]} 6. O-O {[%emt 0:00:35]} Rb8 {[%emt 0:05:20]} 7. a3 {[%emt 0:13:41]} Bxc3 {[%emt 0:00:29]} 8. bxc3 {[%emt 0:01:16]} b6 {[%emt 0:00:06]} 9. d3 {[%emt 0:00:52]} d6 {[%emt 0:12:10]} 10. e4 {[%emt 0:01:25]} e5 {[%emt 0:01:31]} 11. Ne1 {[%emt 0:02:26]} Nd7 {[%emt 0:10:36]} 12. Nc2 {[%emt 0:15:45]} Nc5 {[%emt 0:02:58]} 13. Ne3 {[%emt 0:04:17]} Na5 {[%emt 0:00:28]} 14. Rb1 {[%emt 0:02:00]} Bd7 {[%emt 0:00:08]} 15. d4 {[%emt 0:16:19]} Ncb3 {[%emt 0:10:41]} 16. f4 {[%emt 0:00:12]} Nxc1 {[%emt 0:02:30]} 17. Rxc1 {[%emt 0:00:06]} c5 {[%emt 0:06:14]} 18. dxc5 {[%emt 0:07:14]} dxc5 {[%emt 0:00:15]} 19. fxe5 {[%emt 0:00:17]} Be6 {[%emt 0:01:34]} 20. Qh5 {[%emt 0:01:00]} Nxc4 {[%emt 0:03:40]} 21. Nd5 {[%emt 0:00:29]} h6 {[%emt 0:05:41]} 22. Rf6 {[%emt 0:06:49]} Bxd5 {[%emt 0:05:19]} 23. exd5 {[%emt 0:00:02]} Nxe5 {[%emt 0:03:19]} 24. Rcf1 {[%emt 0:02:29]} gxf6 {[%emt 0:03:19]} 25. Qxh6 {[%emt 0:01:35]} Ng6 {[%emt 0:00:29]} 26. Be4 {[%emt 0:00:18]} Qe7 {[%emt 0:01:51]} 27. Rf4 {[%emt 0:01:33]} f5 {[%emt 0:01:07]} 28. Bxf5 {[%emt 0:00:39]} Rbe8 {[%emt 0:04:07]} 29. Be4 {[%emt 0:02:28]} Qe5 {[%emt 0:02:43]} 0-1

[Event "33rd Cannes Open 2019"]
[Site "Cannes"]
[Date "2019.02.23"]
[Round "8.7"]
[White "Barseghyan, Harutyun"]
[Black "Lamard, Guillaume"]
[Result "1/2-1/2"]
[ECO "A46"]
[WhiteElo "2457"]
[BlackElo "2389"]
[Annotator "ChessBase"]
[PlyCount "72"]
[EventDate "2019.02.18"]
[EventType "swiss"]
[EventCountry "FRA"]
[SourceTitle "playchess.com"]
[Source "ChessBase"]
[SourceQuality "1"]
[TimeControl "40/5400+30:1800+30"]

1. d4 {[%emt 0:00:00]} Nf6 {[%emt 0:00:00]} 2. Nf3 {[%emt 0:00:00]} e6 {[%emt 0:00:00]} 3. Bf4 {[%emt 0:00:00]} d5 {[%emt 0:00:00]} 4. e3 {[%emt 0:00:00]} Bd6 {[%emt 0:00:00]} 5. Bg3 {[%emt 0:00:00]} c5 {[%emt 0:00:00]} 6. Nbd2 {[%emt 0:00:20]} O-O {[%emt 0:00:06]} 7. c3 {[%emt 0:00:05]} Qc7 {[%emt 0:00:04]} 8. Ne5 {[%emt 0:00:32]} Nbd7 {[%emt 0:00:04]} 9. f4 {[%emt 0:00:06]} Ne4 {[%emt 0:00:03]} 10. Nxe4 {[%emt 0:10:48]} dxe4 {[%emt 0:00:04]} 11. Bh4 {[%emt 0:01:46]} cxd4 {[%emt 0:03:38]} 12. cxd4 {[%emt 0:00:58]} Nxe5 {[%emt 0:07:43]} 13. fxe5 {[%emt 0:04:49]} Be7 {[%emt 0:01:13]} 14. Bxe7 {[%emt 0:02:21]} Qxe7 {[%emt 0:00:05]} 15. Qb3 {[%emt 0:03:51]} Bd7 {[%emt 0:05:37]} 16. Bc4 {[%emt 0:06:58]} b5 {[%emt 0:01:31]} 17. Be2 {[%emt 0:00:13]} Qh4+ {[%emt 0:07:27]} 18. g3 {[%emt 0:03:15]} Qh3 {[%emt 0:00:38]} 19. Rc1 {[%emt 0:07:52]} Rac8 {[%emt 0:04:15]} 20. Rxc8 {[%emt 0:01:08]} Rxc8 {[%emt 0:01:53]} 21. Kd2 {[%emt 0:00:29]} a5 {[%emt 0:04:54]} 22. Qd1 {[%emt 0:06:09]} Qh6 {[%emt 0:00:08]} 23. Qb1 {[%emt 0:05:14]} g6 {[%emt 0:00:45]} 24. Rc1 {[%emt 0:05:18]} Rxc1 {[%emt 0:06:31]} 25. Qxc1 {[%emt 0:01:16]} Qxh2 {[%emt 0:00:14]} 26. Qc7 {[%emt 0:01:47]} Be8 {[%emt 0:00:07]} 27. d5 {[%emt 0:05:55]} Qxg3 {[%emt 0:03:37]} 28. Qe7 {[%emt 0:02:46]} Qxe5 {[%emt 0:00:07]} 29. Qxe8+ {[%emt 0:00:04]} Kg7 {[%emt 0:00:02]} 30. Kc2 {[%emt 0:09:31]} Qxd5 {[%emt 0:02:06]} 31. Qxb5 {[%emt 0:00:05]} Qxa2 {[%emt 0:10:07]} 32. Bc4 {[%emt 0:01:01]} Qa1 {[%emt 0:00:14]} 33. Qe5+ {[%emt 0:00:06]} Kg8 {[%emt 0:00:21]} 34. Qb8+ {[%emt 0:00:44]} Kg7 {[%emt 0:00:06]} 35. Qe5+ {[%emt 0:00:03]} Kg8 {[%emt 0:00:05]} 36. Qxe4 {[%emt 0:05:33]} Qa4+ {[%emt 0:00:07]} 1/2-1/2

[Event "33rd Cannes Open 2019"]
[Site "Cannes"]
[Date "2019.02.23"]
[Round "8.8"]
[White "Gueci, Tea"]
[Black "Godena, Michele"]
[Result "0-1"]
[ECO "C70"]
[WhiteElo "2186"]
[BlackElo "2448"]
[Annotator "NA RC"]
[PlyCount "108"]
[EventDate "2019.02.18"]
[EventType "swiss"]
[EventCountry "FRA"]
[SourceTitle "playchess.com"]
[Source "ChessBase"]
[SourceQuality "1"]
[TimeControl "40/5400+30:1800+30"]

1. e4 {[%emt 0:00:00]} e5 {[%emt 0:00:00]} 2. Nf3 {[%emt 0:00:00]} Nc6 {[%emt 0:00:00]} 3. Bb5 {[%emt 0:00:00]} a6 {[%emt 0:02:18]} 4. Ba4 {[%emt 0:00:00]} b5 {[%emt 0:00:45]} 5. Bb3 {[%emt 0:00:00]} g6 {[%emt 0:00:08]} 6. c3 {[%emt 0:00:38]} Bg7 {[%emt 0:01:00]} 7. d4 {[%emt 0:01:12]} exd4 {[%emt 0:00:28]} 8. cxd4 {[%emt 0:00:08]} Nge7 {[%emt 0:00:21]} 9. d5 {[%emt 0:08:38]} Na5 {[%emt 0:01:10]} 10. Bd2 {[%emt 0:00:47]} c5 {[%emt 0:48:16]} 11. dxc6 {[%emt 0:11:57]} dxc6 {[%emt 0:04:08]} 12. Nc3 {[%emt 0:01:51]} O-O {[%emt 0:03:41]} 13. O-O {[%emt 0:05:34]} c5 {[%emt 0:10:16]} 14. Bg5 {[%emt 0:10:58]} Qxd1 {[%emt 0:04:25]} 15. Raxd1 {[%emt 0:00:48]} Nec6 {[%emt 0:00:38]} 16. Bd5 {[%emt 0:07:24]} Bg4 {[%emt 0:03:09]} 17. Be3 {[%emt 0:05:23]} c4 {[%emt 0:00:24]} 18. Bc5 {[%emt 0:02:08]} Bxf3 {[%emt 0:10:36]} 19. gxf3 {[%emt 0:02:40]} Rfe8 {[%emt 0:00:29]} 20. f4 {[%emt 0:03:03]} Rac8 {[%emt 0:00:14]} 21. Bb6 {[%emt 0:02:34]} Bh6 {[%emt 0:05:11]} 22. Be3 {[%emt 0:05:00]} Nb4 {[%emt 0:01:46]} 23. e5 {[%emt 0:03:15]} Nxd5 {[%emt 0:00:08]} 24. Rxd5 {[%emt 0:02:22]} Nc6 {[%emt 0:01:27]} 25. Ne4 {[%emt 0:05:07]} Red8 {[%emt 0:00:21]} 26. Rfd1 {[%emt 0:06:27]} Rxd5 {[%emt 0:00:08]} 27. Rxd5 {[%emt 0:02:19]} Rd8 {[%emt 0:00:24]} 28. Nf6+ {[%emt 0:01:19]} Kg7 {[%emt 0:00:30]} 29. Rxd8 {[%emt 0:00:39]} Nxd8 {[%emt 0:00:01]} 30. Ne8+ {[%emt 0:00:16]} Kf8 {[%emt 0:00:44]} 31. Nc7 {[%emt 0:00:15]} Ne6 {[%emt 0:00:28]} 32. Nxe6+ {[%emt 0:10:36]} fxe6 {[%emt 0:00:04]} 33. Kg2 {[%emt 0:00:19]} Ke8 {[%emt 0:01:19]} 34. Kf3 {[%emt 0:00:54]} Bf8 {[%emt 0:00:26]} 35. Ke4 {[%emt 0:01:41]} Kd7 {[%emt 0:00:10]} 36. a4 {[%emt 0:00:56]} bxa4 {[%emt 0:01:43]} 37. Kd4 {[%emt 0:00:02]} a3 {[%emt 0:00:07]} 38. bxa3 {[%emt 0:00:10]} Bxa3 {[%emt 0:00:01]} 39. Kxc4 {[%emt 0:00:09]} Kc6 {[%emt 0:00:04]} 40. Bd2 {[%emt 0:01:54]} Bc5 {[%emt 0:01:04]} 41. f3 {[%emt 0:02:31]} Bg1 {[%emt 0:17:43]} 42. h3 {[%emt 0:00:54]} Bc5 {[%emt 0:03:07]} 43. Bc1 {[%emt 0:10:12]} a5 {[%emt 0:02:02]} 44. Bd2 {[%emt 0:03:56]} a4 {[%emt 0:00:06]} 45. Bc1 {[%emt 0:01:00]} h5 {[%emt 0:02:34]} 46. Bd2 {[%emt 0:04:21]} Ba3 {[%emt 0:05:16]} 47. Be3 {[%emt 0:05:45]} Bb2 {[%emt 0:01:04]} 48. Kb4 {[%emt 0:00:17]} a3 {[%emt 0:00:07]} 49. Kb3 {[%emt 0:00:04]} Kd5 {[%emt 0:00:05]} 50. Bf2 {[%emt 0:02:22]} Bc1 {[%emt 0:00:35]} 51. Bg1 {[%emt 0:00:24]} Bxf4 {[%emt 0:00:46]} 52. Kxa3 {[%emt 0:00:05]} Kc4 {[%emt 0:00:13]} 53. Kb2 {[%emt 0:01:03]} Kd3 {[%emt 0:00:25]} 54. Kb3 {[%emt 0:00:22]} Bxe5 {[%emt 0:00:31]} 0-1